Workbook

Sheet MAIN PAGE
B2: ='Language-Currency'!A25 -> Currency | BE2: EUR
C4: =CONCATENATE('Language-Currency'!A26," ",Listenwerte!B2) -> Version 1.0.1 | BZ4: =CONCATENATE('Language-Currency'!A28," 1 ",'Language-Currency'!A29," 2") -> Page 1 of 2 | CJ4: ='Language-Currency'!A105 -> Full screen view | FM4: ='Language-Currency'!A99 -> To exit: ESC-key
B5: Belimo Savings Estimator
B6: =CONCATENATE(" ",'Language-Currency'!A30) -> Investment costs 4-pipe system | CK6: =CONCATENATE('Language-Currency'!A27," ") -> Language | CL6: English | FE6: =CL6 -> English
B8: ='Language-Currency'!A31 -> Project
B9: ='Language-Currency'!A32 -> Version | CJ9: ='Language-Currency'!A106 -> Quick reference costs
B11: ='Language-Currency'!A33 -> Creator
B12: ='Language-Currency'!A41 -> Processing date | CJ12: ='Language-Currency'!A107 -> Print
FM13: ='Language-Currency'!A100 -> PDF-File will be saved in the same directory as the excel file… | FS13: ='Calculation values'!BE24 -> EUR
B14: =CONCATENATE(" ",'Language-Currency'!A42) -> Calculation basis | CJ14: ='Language-Currency'!A108 -> Create PDF | FM14: Dateiname für PDF: | FO14: =CONCATENATE(U8,"_",U9) -> _ | FS14: Beispielwerte aus Calculation values (automatische Übernahme):
B16: ='Language-Currency'!A43 -> Number of heat exchangers (Heating & Cooling) | BE16: 50 | BQ16: ='Language-Currency'!A58 -> pieces | CJ16: ='Language-Currency'!A109 -> Delete entries | FS16: ='Calculation values'!BE26 -> 50
B18: ='Language-Currency'!A44 -> Type of installation | BE18: Existing construction / one-time | CC18: =IF(Listenwerte!I12=0,CONCATENATE("« ",'Language-Currency'!A134)," ") -> 
CJ19: ='Language-Currency'!A110 -> Use of example values
B20: ='Language-Currency'!A45 -> Average distance between control cabinet and junction box | BE20: 25 | BQ20: ='Language-Currency'!A59 -> meters | FS20: ='Calculation values'!BE28 -> 25
B21: =CONCATENATE('Language-Currency'!A49," (",'Language-Currency'!A37,")") -> Cost of a 2-way valve including actuator (modulating) | BE21: 36 | BQ21: =CONCATENATE(BE2,"/",'Language-Currency'!A57) -> EUR/piece | FS21: ='Calculation values'!BE29 -> 36
B22: =CONCATENATE('Language-Currency'!A49," (",'Language-Currency'!A36,")") -> Cost of a 2-way valve including actuator (open-close) | BE22: 32 | BQ22: =BQ21 -> EUR/piece | CJ22: ='Language-Currency'!A115 -> Information
B23: ='Language-Currency'!A50 -> Cost of a 3-way valve including actuator | BE23: 41 | BQ23: =BQ21 -> EUR/piece | FS23: ='Calculation values'!BE31 -> 41
B24: ='Language-Currency'!A51 -> Cost of a 6-way valve including actuator | BE24: 165 | BQ24: =BQ21 -> EUR/piece | FS24: ='Calculation values'!BE32 -> 165
B25: ='Language-Currency'!A52 -> Cost of a physical data point | BE25: 50 | BQ25: =BQ21 -> EUR/piece | FS25: ='Calculation values'!BE33 -> 50
B26: ='Language-Currency'!A53 -> Cable costs | BE26: 0.19 | BQ26: =CONCATENATE(BE2,"/",'Language-Currency'!A61) -> EUR/meter | FS26: ='Calculation values'!BE34 -> 0.19
B27: ='Language-Currency'!A54 -> Cost of a junction box | BE27: 9 | BQ27: =BQ21 -> EUR/piece | FL27: Grafik | FS27: ='Calculation values'!BE35 -> 9
B28: ='Language-Currency'!A56 -> Hourly rate installation work | BE28: 40 | BQ28: =CONCATENATE(BE2,"/",'Language-Currency'!A62) -> EUR/hour | FS28: ='Calculation values'!BE36 -> 40
FM29: 4 x 2W | FN29: 2 x 2W | FO29: 1 x 6W
B30: =CONCATENATE(" ",'Language-Currency'!A71) -> Estimate of costs | FN30: 3 x 2W
AL32: =CONCATENATE("4 ",'Language-Currency'!A75," ",'Language-Currency'!A72) -> 4 pcs. 2-way | AZ32: =CONCATENATE("2 ",'Language-Currency'!A75," ",'Language-Currency'!A72) -> 2 pcs. 2-way | BN32: =CONCATENATE("1 ",'Language-Currency'!A75," ",'Language-Currency'!A74) -> 1 pcs. 6-way | FL32: =D45 -> Costs of all valves and actuators | FM32: =AL73 -> 6800 | FN32: =IF(OR(BE21=0,BE23=0),0,AZ73) -> 5650 | FO32: =BN73 -> 8250
AZ33: =CONCATENATE("1 ",'Language-Currency'!A75," ",'Language-Currency'!A73) -> 1 pcs. 3-way | FL33: =D51 -> Costs of data points, cable, junction boxes | FM33: =IF(FM32=0,0,AL79) -> 12750 | FN33: =IF(FN32=0,0,AZ79) -> 9562.5 | FO33: =IF(FO32=0,0,BN79) -> 3187.5
FL34: =D57 -> Costs of valve installation | FM34: =IF(FM32=0,0,AL85) -> 10080 | FN34: =IF(FN32=0,0,AZ85) -> 8280 | FO34: =IF(FO32=0,0,BN85) -> 6480
CJ35: ='Language-Currency'!A114 -> Page up | FL35: =D63 -> Costs of actuator installation | FM35: =IF(FM32=0,0,AL91) -> 4120 | FN35: =IF(FN32=0,0,AZ91) -> 3090 | FO35: =IF(FO32=0,0,BN91) -> 1030
FL36: Beschriftung y-Achse | FM36: =CONCATENATE('Language-Currency'!A55," [",BE2,"]") -> Costs [EUR]
CJ37: ='Language-Currency'!A101 -> Display: High level of details
B39: ='Language-Currency'!A76 -> Number of valves per heat exchanger | AL39: 4 Stk. | AZ39: 3 Stk. | BN39: 1 Stk. | CJ39: ='Language-Currency'!A102 -> Display: Middle level of details
B41: ='Language-Currency'!A77 -> Overall costs of material and installation | AL41: =CONCATENATE($BE$2," ",IF(AL69<10,ROUND(AL69,2),TEXT(AL69,"#'###"))) -> EUR 33'750 | AZ41: =CONCATENATE($BE$2," ",IF(AZ69<10,ROUND(AZ69,2),TEXT(AZ69,"#'###"))) -> EUR 26'583 | BN41: =CONCATENATE($BE$2," ",IF(BN69<10,ROUND(BN69,2),TEXT(BN69,"#'###"))) -> EUR 18'948 | CJ41: ='Language-Currency'!A103 -> Display: Low level of details
C43: ='Language-Currency'!A78 -> Total material costs | AL43: =CONCATENATE($BE$2," ",IF(AL71<10,ROUND(AL71,2),TEXT(AL71,"#'###"))) -> EUR 19'550 | AZ43: =CONCATENATE($BE$2," ",IF(AZ71<10,ROUND(AZ71,2),TEXT(AZ71,"#'###"))) -> EUR 15'213 | BN43: =CONCATENATE($BE$2," ",IF(BN71<10,ROUND(BN71,2),TEXT(BN71,"#'###"))) -> EUR 11'438
D45: ='Language-Currency'!A79 -> Costs of all valves and actuators | AL45: =CONCATENATE($BE$2," ",IF(AL73<10,ROUND(AL73,2),TEXT(AL73,"#'###"))) -> EUR 6'800 | AZ45: =CONCATENATE($BE$2," ",IF(AZ73<10,ROUND(AZ73,2),TEXT(AZ73,"#'###"))) -> EUR 5'650 | BN45: =CONCATENATE($BE$2," ",IF(BN73<10,ROUND(BN73,2),TEXT(BN73,"#'###"))) -> EUR 8'250
D46: ='Language-Currency'!A80 -> Total number of valves and actuators | AL46: =CONCATENATE(TEXT(AL74,"#'###")," ",'Language-Currency'!$A$58) -> 200 pieces | AZ46: =CONCATENATE(TEXT(AZ74,"#'###")," ",'Language-Currency'!$A$58) -> 150 pieces | BN46: =CONCATENATE(TEXT(BN74,"#'###")," ",'Language-Currency'!$A$58) -> 50 pieces
E47: =CONCATENATE('Language-Currency'!A81," ",'Language-Currency'!A72) -> Number of 2-way | AL47: =CONCATENATE(TEXT(AL75,"#'###")," ",'Language-Currency'!$A$58) -> 200 pieces | AZ47: =CONCATENATE(TEXT(AZ75,"#'###")," ",'Language-Currency'!$A$58) -> 100 pieces | BN47: =CONCATENATE(BN75," ",'Language-Currency'!$A$58) -> 0 pieces
E48: =CONCATENATE('Language-Currency'!A81," ",'Language-Currency'!A73) -> Number of 3-way | AL48: =CONCATENATE(AL76," ",'Language-Currency'!$A$58) -> 0 pieces | AZ48: =CONCATENATE(TEXT(AZ76,"#'###")," ",'Language-Currency'!$A$58) -> 50 pieces | BN48: =CONCATENATE(BN76," ",'Language-Currency'!$A$58) -> 0 pieces
E49: =CONCATENATE('Language-Currency'!A81," ",'Language-Currency'!A74) -> Number of 6-way | AL49: =CONCATENATE(AL77," ",'Language-Currency'!$A$58) -> 0 pieces | AZ49: =CONCATENATE(AZ77," ",'Language-Currency'!$A$58) -> 0 pieces | BN49: =CONCATENATE(TEXT(BN77,"#'###")," ",'Language-Currency'!$A$58) -> 50 pieces
D51: ='Language-Currency'!A82 -> Costs of data points, cable, junction boxes | AL51: =CONCATENATE($BE$2," ",IF(AL79<10,ROUND(AL79,2),TEXT(AL79,"#'###"))) -> EUR 12'750 | AZ51: =CONCATENATE($BE$2," ",IF(AZ79<10,ROUND(AZ79,2),TEXT(AZ79,"#'###"))) -> EUR 9'563 | BN51: =CONCATENATE($BE$2," ",IF(BN79<10,ROUND(BN79,2),TEXT(BN79,"#'###"))) -> EUR 3'188
D52: ='Language-Currency'!A83 -> Number of data points / junction boxes | AL52: =CONCATENATE(TEXT(AL80,"#'###")," ",'Language-Currency'!$A$58) -> 200 pieces | AZ52: =CONCATENATE(TEXT(AZ80,"#'###")," ",'Language-Currency'!$A$58) -> 150 pieces | BN52: =CONCATENATE(TEXT(BN80,"#'###")," ",'Language-Currency'!$A$58) -> 50 pieces
D53: ='Language-Currency'!A84 -> Total cable length | AL53: =IF($BN$81<1000,CONCATENATE(AL81," ",'Language-Currency'!$A$59),CONCATENATE(ROUND(AL81/1000,2)," ",'Language-Currency'!$A$60)) -> 5 kilometres | AZ53: =IF($BN$81<1000,CONCATENATE(AZ81," ",'Language-Currency'!$A$59),CONCATENATE(ROUND(AZ81/1000,2)," ",'Language-Currency'!$A$60)) -> 3.75 kilometres | BN53: =IF($BN$81<1000,CONCATENATE(BN81," ",'Language-Currency'!$A$59),CONCATENATE(ROUND(BN81/1000,2)," ",'Language-Currency'!$A$60)) -> 1.25 kilometres
C55: ='Language-Currency'!A85 -> Total installation costs | AL55: =CONCATENATE($BE$2," ",IF(AL83<10,ROUND(AL83,2),TEXT(AL83,"#'###"))) -> EUR 14'200 | AZ55: =CONCATENATE($BE$2," ",IF(AZ83<10,ROUND(AZ83,2),TEXT(AZ83,"#'###"))) -> EUR 11'370 | BN55: =CONCATENATE($BE$2," ",IF(BN83<10,ROUND(BN83,2),TEXT(BN83,"#'###"))) -> EUR 7'510
D57: ='Language-Currency'!A86 -> Costs of valve installation | AL57: =CONCATENATE($BE$2," ",IF(AL85<10,ROUND(AL85,2),TEXT(AL85,"#'###"))) -> EUR 10'080 | AZ57: =CONCATENATE($BE$2," ",IF(AZ85<10,ROUND(AZ85,2),TEXT(AZ85,"#'###"))) -> EUR 8'280 | BN57: =CONCATENATE($BE$2," ",IF(BN85<10,ROUND(BN85,2),TEXT(BN85,"#'###"))) -> EUR 6'480
D58: ='Language-Currency'!A87 -> Effort valve installation | AL58: =IF(AL86<10,CONCATENATE(ROUND(AL86,1)," ",'Language-Currency'!$A$63),CONCATENATE(TEXT(AL86,"#'###")," ",'Language-Currency'!$A$63)) -> 252 hours | AZ58: =IF(AZ86<10,CONCATENATE(ROUND(AZ86,1)," ",'Language-Currency'!$A$63),CONCATENATE(TEXT(AZ86,"#'###")," ",'Language-Currency'!$A$63)) -> 207 hours | BN58: =IF(BN86<10,CONCATENATE(ROUND(BN86,1)," ",'Language-Currency'!$A$63),CONCATENATE(TEXT(BN86,"#'###")," ",'Language-Currency'!$A$63)) -> 162 hours
E59: =CONCATENATE('Language-Currency'!A88," ",'Language-Currency'!A72) -> Installation effort 2-way | AL59: =IF(AL87<10,CONCATENATE(ROUND(AL87,1)," ",'Language-Currency'!$A$63),CONCATENATE(TEXT(AL87,"#'###")," ",'Language-Currency'!$A$63)) -> 252 hours | AZ59: =IF(AZ87<10,CONCATENATE(ROUND(AZ87,1)," ",'Language-Currency'!$A$63),CONCATENATE(TEXT(AZ87,"#'###")," ",'Language-Currency'!$A$63)) -> 126 hours | BN59: =IF(BN87<10,CONCATENATE(ROUND(BN87,1)," ",'Language-Currency'!$A$63),CONCATENATE(ROUND(BN87,0)," ",'Language-Currency'!$A$63)) -> 0 hours
E60: =CONCATENATE('Language-Currency'!A88," ",'Language-Currency'!A73) -> Installation effort 3-way | AL60: =IF(AL88<10,CONCATENATE(ROUND(AL88,1)," ",'Language-Currency'!$A$63),CONCATENATE(ROUND(AL88,0)," ",'Language-Currency'!$A$63)) -> 0 hours | AZ60: =IF(AZ88<10,CONCATENATE(ROUND(AZ88,1)," ",'Language-Currency'!$A$63),CONCATENATE(TEXT(AZ88,"#'###")," ",'Language-Currency'!$A$63)) -> 81 hours | BN60: =IF(BN88<10,CONCATENATE(ROUND(BN88,1)," ",'Language-Currency'!$A$63),CONCATENATE(ROUND(BN88,0)," ",'Language-Currency'!$A$63)) -> 0 hours
E61: =CONCATENATE('Language-Currency'!A88," ",'Language-Currency'!A74) -> Installation effort 6-way | AL61: =IF(AL89<10,CONCATENATE(ROUND(AL89,1)," ",'Language-Currency'!$A$63),CONCATENATE(ROUND(AL89,0)," ",'Language-Currency'!$A$63)) -> 0 hours | AZ61: =IF(AZ89<10,CONCATENATE(ROUND(AZ89,1)," ",'Language-Currency'!$A$63),CONCATENATE(ROUND(AZ89,0)," ",'Language-Currency'!$A$63)) -> 0 hours | BN61: =IF(BN89<10,CONCATENATE(ROUND(BN89,1)," ",'Language-Currency'!$A$63),CONCATENATE(TEXT(BN89,"#'###")," ",'Language-Currency'!$A$63)) -> 162 hours
D63: ='Language-Currency'!A89 -> Costs of actuator installation | AL63: =CONCATENATE($BE$2," ",IF(AL91<10,ROUND(AL91,2),TEXT(AL91,"#'###"))) -> EUR 4'120 | AZ63: =CONCATENATE($BE$2," ",IF(AZ91<10,ROUND(AZ91,2),TEXT(AZ91,"#'###"))) -> EUR 3'090 | BN63: =CONCATENATE($BE$2," ",IF(BN91<10,ROUND(BN91,2),TEXT(BN91,"#'###"))) -> EUR 1'030
D64: ='Language-Currency'!A90 -> Effort installation actuator | AL64: =IF(AL92<10,CONCATENATE(ROUND(AL92,1)," ",'Language-Currency'!$A$63),CONCATENATE(TEXT(AL92,"#'###")," ",'Language-Currency'!$A$63)) -> 14 hours | AZ64: =IF(AZ92<10,CONCATENATE(ROUND(AZ92,1)," ",'Language-Currency'!$A$63),CONCATENATE(TEXT(AZ92,"#'###")," ",'Language-Currency'!$A$63)) -> 11 hours | BN64: =IF(BN92<10,CONCATENATE(ROUND(BN92,1)," ",'Language-Currency'!$A$63),CONCATENATE(TEXT(BN92,"#'###")," ",'Language-Currency'!$A$63)) -> 3.5 hours
D65: ='Language-Currency'!A91 -> Effort installation of junction box | AL65: =IF(AL93<10,CONCATENATE(ROUND(AL93,1)," ",'Language-Currency'!$A$63),CONCATENATE(TEXT(AL93,"#'###")," ",'Language-Currency'!$A$63)) -> 64 hours | AZ65: =IF(AZ93<10,CONCATENATE(ROUND(AZ93,1)," ",'Language-Currency'!$A$63),CONCATENATE(TEXT(AZ93,"#'###")," ",'Language-Currency'!$A$63)) -> 48 hours | BN65: =IF(BN93<10,CONCATENATE(ROUND(BN93,1)," ",'Language-Currency'!$A$63),CONCATENATE(TEXT(BN93,"#'###")," ",'Language-Currency'!$A$63)) -> 16 hours
D66: ='Language-Currency'!A92 -> Effort cable installation | AL66: =IF(AL94<10,CONCATENATE(ROUND(AL94,1)," ",'Language-Currency'!$A$63),CONCATENATE(TEXT(AL94,"#'###")," ",'Language-Currency'!$A$63)) -> 25 hours | AZ66: =IF(AZ94<10,CONCATENATE(ROUND(AZ94,1)," ",'Language-Currency'!$A$63),CONCATENATE(TEXT(AZ94,"#'###")," ",'Language-Currency'!$A$63)) -> 19 hours | BN66: =IF(BN94<10,CONCATENATE(ROUND(BN94,1)," ",'Language-Currency'!$A$63),CONCATENATE(TEXT(BN94,"#'###")," ",'Language-Currency'!$A$63)) -> 6.3 hours
B69: Gesamtkosten Ventile/Antriebe/Montage | AL69: =AL71+AL83 -> 33750 | AZ69: =AZ71+AZ83 -> 26582.5 | BN69: =BN71+BN83 -> 18947.5
C71: Gesamtkosten Material | AL71: =AL73+AL79 -> 19550 | AZ71: =AZ73+AZ79 -> 15212.5 | BN71: =BN73+BN79 -> 11437.5
D73: Kosten alle Ventile | AL73: =AL75/2*BE21+AL75/2*BE22 -> 6800 | AZ73: =AZ75*BE21+AZ76*BE23 -> 5650 | BN73: =BN77*BE24 -> 8250
D74: Anzahl Ventile Projekt | AL74: =AL75+AL76+AL77 -> 200 | AZ74: =AZ75+AZ76+AZ77 -> 150 | BN74: =BN75+BN76+BN77 -> 50
E75: Anzahl 2-Weg | AL75: =BE16*4 -> 200 | AZ75: =BE16*2 -> 100 | BN75: 0
E76: Anzahl 3-Weg | AL76: 0 | AZ76: =BE16*1 -> 50 | BN76: 0
E77: Anzahl 6-Weg | AL77: 0 | AZ77: 0 | BN77: =BE16*1 -> 50
D79: Kosten IO + Kabel + Anschlussdosen | AL79: =AL81*$BE$26+AL80*$BE$25+AL80*$BE$27 -> 12750 | AZ79: =AZ81*$BE$26+AZ80*$BE$25+AZ80*$BE$27 -> 9562.5 | BN79: =BN81*$BE$26+BN80*$BE$25+BN80*$BE$27 -> 3187.5
D80: Anzahl IO / Anschlussdosen | AL80: =$BE$16*4 -> 200 | AZ80: =$BE$16*3 -> 150 | BN80: =$BE$16*1 -> 50
D81: Kabellänge total | AD81: Meter | AL81: =AL74*$BE$20 -> 5000 | AZ81: =AZ74*$BE$20 -> 3750 | BN81: =BN74*$BE$20 -> 1250
C83: Gesamtkosten Installation | AL83: =AL85+AL91 -> 14200 | AZ83: =AZ85+AZ91 -> 11370 | BN83: =BN85+BN91 -> 7510
D85: Kosten Ventilinstallation | AL85: =AL86*$BE$28 -> 10080 | AZ85: =AZ86*$BE$28 -> 8280 | BN85: =BN86*$BE$28 -> 6480
D86: Aufwand Ventilinstallation | AL86: =AL87+AL88+AL89 -> 252 | AZ86: =AZ87+AZ88+AZ89 -> 207 | BN86: =BN87+BN88+BN89 -> 162
E87: Aufwand Installation 2-Weg | AL87: =AL75*'Calculation values'!$DC$21 -> 252 | AZ87: =AZ75*'Calculation values'!$DC$21 -> 126 | BN87: =BN75*'Calculation values'!$DC$21 -> 0
E88: Aufwand Installation 3-Weg | AL88: =AL76*'Calculation values'!$DD$21 -> 0 | AZ88: =AZ76*'Calculation values'!$DD$21 -> 81 | BN88: =BN76*'Calculation values'!$DD$21 -> 0
E89: Aufwand Installation 6-Weg | AL89: =AL77*'Calculation values'!$DE$21 -> 0 | AZ89: =AZ77*'Calculation values'!$DE$21 -> 0 | BN89: =BN77*'Calculation values'!$DE$21 -> 162
D91: Kosten elektrische Installation | AL91: =(AL92+AL93+AL94)*$BE$28 -> 4120 | AZ91: =(AZ92+AZ93+AZ94)*$BE$28 -> 3090 | BN91: =(BN92+BN93+BN94)*$BE$28 -> 1030
D92: Aufwand Antriebsinstallation | AL92: =AL74*'Calculation values'!$DF$21 -> 14 | AZ92: =AZ74*'Calculation values'!$DF$21 -> 10.5 | BN92: =BN74*'Calculation values'!$DF$21 -> 3.5
D93: Aufwand Montage Anschlussdosen | AL93: =AL74*'Calculation values'!$DG$21 -> 64 | AZ93: =AZ74*'Calculation values'!$DG$21 -> 48 | BN93: =BN74*'Calculation values'!$DG$21 -> 16
D94: Aufwand Kabelverlegung | AL94: =AL81*'Calculation values'!$DH$21 -> 25 | AZ94: =AZ81*'Calculation values'!$DH$21 -> 18.75 | BN94: =BN81*'Calculation values'!$DH$21 -> 6.25
C97: =C4 -> Version 1.0.1 | BZ97: =CONCATENATE('Language-Currency'!A28," 2 ",'Language-Currency'!A29," 2") -> Page 2 of 2
B98: =B8 -> Project | U98: =U8 -> 0
B99: =B9 -> Version | U99: =U9 -> 0
B101: =B11 -> Creator | U101: =U11 -> 0
B102: =B12 -> Processing date | U102: =U12 -> 0
B104: =B30 -> Estimate of costs
M119: =AL32 -> 4 pcs. 2-way | AG119: =AZ32 -> 2 pcs. 2-way | BA119: =BN32 -> 1 pcs. 6-way
AG120: =AZ33 -> 1 pcs. 3-way
M122: =AL41 -> EUR 33'750 | AG122: =AZ41 -> EUR 26'583 | BA122: =BN41 -> EUR 18'948
M123: =BS129*P129+BS130*P130+BS131*P131 -> 1.78123763 | AG123: =BS129*AH129+BS130*AH130+BS131*AH131 -> 1.402955535 | BA123: =BS129*AZ129+BS130*AZ130+BS131*AZ131 -> 1
BA125: =CONCATENATE('Language-Currency'!A24,CHAR(10),"DN15: R3015-..-..-B2",CHAR(10),"DN20: R3020-..-..-B2") -> Belimo 6-way zone valve DN15: R3015-..-..-B2 DN20: R3020-..-..-B2
P129: 1 | AH129: =P129/AL69*AZ69 -> 0.7876296296 | AZ129: =P129/AL69*BN69 -> 0.5614074074 | BS129: =IF(OR(P129<1,AH129<1,AZ129<1),0,1) -> 0
P130: =AH130/AZ69*AL69 -> 1.269632277 | AH130: 1 | AZ130: =AH130/AZ69*BN69 -> 0.7127809649 | BS130: =IF(OR(P130<1,AH130<1,AZ130<1),0,1) -> 0
P131: =AZ131/BN69*AL69 -> 1.78123763 | AH131: =AZ131/BN69*AZ69 -> 1.402955535 | AZ131: 1 | BS131: =IF(OR(P131<1,AH131<1,AZ131<1),0,1) -> 1
B133: =CONCATENATE(" ",'Language-Currency'!A104) -> Disclaimer / Information
CJ134: ='Language-Currency'!A114 -> Page up
B135: =FL138 -> This is an estimating tool which considers the named costs. Results are dependent on the accuracy of the input values. For the calculation of the installation costs the following standard times has been used: ▪ Installation 2-way: 75.6 minutes per valve ▪ Installation 3-way: 97.2 minutes per valve ▪ Installation 6-way: 194.4 minutes per valve ▪ Installation Actuator: 4.2 minutes per actuator ▪ Installation Junction box: 19.2 minutes per junction box ▪ Effort cable installation : 0.3 minutes per linear meter Subject to modifications and amendments.
FL136: Disclaimertext
FL138: =CONCATENATE('Language-Currency'!A95,CHAR(10),CHAR(10),'Language-Currency'!A96,CHAR(10),FL140,CHAR(10),FL141,CHAR(10),FL142,CHAR(10),FL143,CHAR(10),FL144,CHAR(10),FL145,CHAR(10),CHAR(10),'Language-Currency'!A98) -> This is an estimating tool which considers the named costs. Results are dependent on the accuracy of the input values. For the calculation of the installation costs the following standard times has been used: ▪ Installation 2-way: 75.6 minutes per valve ▪ Installation 3-way: 97.2 minutes per valve ▪ Installation 6-way: 194.4 minutes per valve ▪ Installation Actuator: 4.2 minutes per actuator ▪ Installation Junction box: 19.2 minutes per junction box ▪ Effort cable installation : 0.3 minutes per linear meter Subject to modifications and amendments.
FL140: =CONCATENATE(" ▪ ",'Language-Currency'!A97," ",'Language-Currency'!A72,": ",'Calculation values'!DC22," ",'Language-Currency'!A64," ",'Language-Currency'!A48) -> ▪ Installation 2-way: 75.6 minutes per valve
FL141: =CONCATENATE(" ▪ ",'Language-Currency'!A97," ",'Language-Currency'!A73,": ",'Calculation values'!DD22," ",'Language-Currency'!A64," ",'Language-Currency'!A48) -> ▪ Installation 3-way: 97.2 minutes per valve
FL142: =CONCATENATE(" ▪ ",'Language-Currency'!A97," ",'Language-Currency'!A74,": ",'Calculation values'!DE22," ",'Language-Currency'!A64," ",'Language-Currency'!A48) -> ▪ Installation 6-way: 194.4 minutes per valve
FL143: =CONCATENATE(" ▪ ",'Language-Currency'!A97," ",'Language-Currency'!A34,": ",'Calculation values'!DF22," ",'Language-Currency'!A64," ",'Language-Currency'!A38) -> ▪ Installation Actuator: 4.2 minutes per actuator
FL144: =CONCATENATE(" ▪ ",'Language-Currency'!A97," ",'Language-Currency'!A39,": ",'Calculation values'!DG22," ",'Language-Currency'!A64," ",'Language-Currency'!A40) -> ▪ Installation Junction box: 19.2 minutes per junction box
FL145: =CONCATENATE(" ▪ ",'Language-Currency'!A92," ",": ",'Calculation values'!DH22," ",'Language-Currency'!A64," ",'Language-Currency'!A94) -> ▪ Effort cable installation : 0.3 minutes per linear meter

Sheet Cost analysis
C1: ='MAIN PAGE'!C4 -> Version 1.0.1
B2: Belimo Savings Estimator
B3: ='MAIN PAGE'!B6:CA6 -> Investment costs 4-pipe system | CG3: ='Language-Currency'!A132 -> Back to main page
M5: ='MAIN PAGE'!M119 -> 4 pcs. 2-way | AG5: ='MAIN PAGE'!AG119:AZ119 -> 2 pcs. 2-way | BA5: ='MAIN PAGE'!BA119 -> 1 pcs. 6-way
AG6: ='MAIN PAGE'!AG120:AZ120 -> 1 pcs. 3-way
M8: ='MAIN PAGE'!$M$122:$AF$122 -> EUR 33'750 | AG8: ='MAIN PAGE'!$AG$122:$AZ$122 -> EUR 26'583 | BA8: ='MAIN PAGE'!$BA$122:$BT$122 -> EUR 18'948
M9: =IFERROR('MAIN PAGE'!$M$123:$AF$123,0) -> 1.78123763 | AG9: =IFERROR('MAIN PAGE'!$AG$123:$AZ$123,0) -> 1.402955535 | BA9: =IFERROR('MAIN PAGE'!$BA$123:$BT$123,0) -> 1
BA11: ='MAIN PAGE'!BA125:BT125 -> Belimo 6-way zone valve DN15: R3015-..-..-B2 DN20: R3020-..-..-B2

Sheet Language-Currency
B2: CURRENCY
B3: How to add further currencies?
B4: - Enter the new currency in cells C6 … C12
B5: - Currencies in the cells C6, C7 and C8 may be replaced or deleted
C6: EUR
C7: €
C8: CHF
B14: LANGUAGES
B15: How to add further languages?
B16: - Choose a column D to H
B17: - Enter the language in row 23
B18: - Perform the translation
B19: Translated files should be send to Christian Luchsinger. Translation will be added to the master file.
A20: Wahl: | B20: ='MAIN PAGE'!FE6 -> English
A23: gewählt | B23: Deutsch | C23: English | D23: Nederlands
A24: =IF($B$20=$B$23,B24,IF($B$20=$C$23,C24,IF($B$20=$D$23,D24,IF($B$20=$E$23,E24,IF($B$20=$F$23,F24,IF($B$20=$G$23,G24,"!!!FEHLER!!!")))))) -> Belimo 6-way zone valve | B24: 6-Weg-Zonenventil von Belimo | C24: Belimo 6-way zone valve | D24: 6-weg regelkogelkraan van Belimo
A25: =IF($B$20=$B$23,B25,IF($B$20=$C$23,C25,IF($B$20=$D$23,D25,IF($B$20=$E$23,E25,IF($B$20=$F$23,F25,IF($B$20=$G$23,G25,"!!!FEHLER!!!")))))) -> Currency | B25: Währung | C25: Currency | D25: Valuta
A26: Version | B26: Version | C26: Version | D26: Versie
A27: Language | B27: Sprache | C27: Language | D27: Taal
A28: Page | B28: Seite | C28: Page | D28: Pagina
A29: of | B29: von | C29: of | D29: van
A30: Investment costs 4-pipe system | B30: Investitionskosten 4-Leiter-System | C30: Investment costs 4-pipe system | D30: Investeringskosten 4-pijps systeem
A31: Project | B31: Projekt | C31: Project | D31: Project
A32: Version | B32: Version | C32: Version | D32: Versie
A33: Creator | B33: Ersteller | C33: Creator | D33: Maker
A34: Actuator | B34: Antrieb | C34: Actuator | D34: Aandrijving
A35: Valve | B35: Ventil | C35: Valve | D35: Ventiel
A36: open-close | B36: Auf-Zu | C36: open-close | D36: Open-dicht
A37: modulating | B37: stetig | C37: modulating | D37: Modulerend
A38: per actuator | B38: pro Antrieb | C38: per actuator | D38: per aandrijving
A39: Junction box | B39: Anschlussdose | C39: Junction box | D39: Lasdoos
A40: per junction box | B40: pro Anschlussdose | C40: per junction box | D40: per lasdoos
A41: Processing date | B41: Erstellungsdatum | C41: Processing date | D41: Aanmaakdatum
A42: Calculation basis | B42: Berechnungsgrundlage | C42: Calculation basis | D42: Calculatiebasis
A43: Number of heat exchangers (Heating & Cooling) | B43: Anzahl Wärmetauscher (Heizen & Kühlen) | C43: Number of heat exchangers (Heating & Cooling) | D43: Aantal warmtewisselaars (verwarmen & koelen)
A44: Type of installation | B44: Installationsart | C44: Type of installation | D44: Soort installatie
A45: Average distance between control cabinet and junction box | B45: Durchschnittlicher Abstand zwischen Schaltschrank und Anschlussdose | C45: Average distance between control cabinet and junction box | D45: Gemiddelde afstand tussen schakelkast en lasdoos
A46: Cable between data point and junction box | B46: Kabel zwischen Datenpunkt und Anschlussdose | C46: Cable between data point and junction box | D46: Kabel tussen datapunt en lasdoos
A47: -way valve | B47: -Weg Ventil | C47: -way valve | D47: -weg ventiel
A48: per valve | B48: pro Ventil | C48: per valve | D48: per ventiel
A49: Cost of a 2-way valve including actuator | B49: Kosten für 2-Weg Ventil inklusive Antrieb | C49: Cost of a 2-way valve including actuator | D49: Kosten voor 2-weg ventiel inclusief aandrijving
A50: Cost of a 3-way valve including actuator | B50: Kosten für 3-Weg Ventil inklusive Antrieb | C50: Cost of a 3-way valve including actuator | D50: Kosten voor 3-weg ventiel inclusief aandrijving
A51: Cost of a 6-way valve including actuator | B51: Kosten für 6-Weg Ventil inklusive Antrieb | C51: Cost of a 6-way valve including actuator | D51: Kosten voor 6-weg ventiel inclusief aandrijving
A52: Cost of a physical data point | B52: Kosten physikalischer Datenpunkt | C52: Cost of a physical data point | D52: Kosten fysiek datapunt
A53: Cable costs | B53: Kosten Kabel | C53: Cable costs | D53: Kosten kabel
A54: Cost of a junction box | B54: Kosten Anschlussdose | C54: Cost of a junction box | D54: Kosten lasdoos
A55: Costs | B55: Kosten | C55: Costs | D55: Kosten
A56: Hourly rate installation work | B56: Stundensatz Installationsarbeiten | C56: Hourly rate installation work | D56: Uurtarief installatie-arbeid
A57: piece | B57: Stück | C57: piece | D57: Stuk
A58: pieces | B58: Stück | C58: pieces | D58: Stuk
A59: meters | B59: Meter | C59: meters | D59: Meter
A60: kilometres | B60: Kilometer | C60: kilometres | D60: Kilometer
A61: meter | B61: lfm | C61: meter | D61: Meter
A62: hour | B62: Stunde | C62: hour | D62: Uur
A63: hours | B63: Stunden | C63: hours | D63: Uren
A64: minutes | B64: Minuten | C64: minutes | D64: Minuten
A65: New construction / one-time | B65: Neubau einmalig | C65: New construction / one-time | D65: Nieuwbouw eenmalig
A66: New construction / repetitive | B66: Neubau wiederholend | C66: New construction / repetitive | D66: Nieuwbouw herhaald
A67: Existing construction / one-time | B67: Bestandsbau einmalig | C67: Existing construction / one-time | D67: Bestaande bouw eenmalig
A68: Existing construction / repetitive | B68: Bestandsbau wiederholend | C68: Existing construction / repetitive | D68: Bestaande bouw herhaald
A69: User-defined 1 | B69: Benutzerdefiniert 1 | C69: User-defined 1 | D69: Bepaald door gebruiker 1
A70: User-defined 2 | B70: Benutzerdefiniert 2 | C70: User-defined 2 | D70: Bepaald door gebruiker 2
A71: Estimate of costs | B71: Abschätzung der Kosten | C71: Estimate of costs | D71: Schatting van de kosten
A72: 2-way | B72: 2-Weg | C72: 2-way | D72: 2-weg
A73: 3-way | B73: 3-Weg | C73: 3-way | D73: 3-weg
A74: 6-way | B74: 6-Weg | C74: 6-way | D74: 6-weg
A75: pcs. | B75: Stk. | C75: pcs. | D75: St.
A76: Number of valves per heat exchanger | B76: Anzahle Ventile pro Wärmetauscher | C76: Number of valves per heat exchanger | D76: Aantallen ventielen per warmtewisselaar
A77: Overall costs of material and installation | B77: Gesamtkosten für Material und Installation | C77: Overall costs of material and installation | D77: Totale kosten voor materiaal en installatie
A78: Total material costs | B78: Gesamtkosten Material | C78: Total material costs | D78: Totale kosten materiaal
A79: Costs of all valves and actuators | B79: Kosten für alle Ventile und Antriebe | C79: Costs of all valves and actuators | D79: Kosten voor alle ventielen en aandrijvingen
A80: Total number of valves and actuators | B80: Totale Anzahl Ventile und Antriebe | C80: Total number of valves and actuators | D80: Totaal aantal ventielen en aandrijvingen
A81: Number of | B81: Anzahl | C81: Number of | D81: Aantal
A82: Costs of data points, cable, junction boxes | B82: Kosten Datenpunkte, Kabel, Anschlussdosen | C82: Costs of data points, cable, junction boxes | D82: Kosten datapunten, kabel, lasdozen
A83: Number of data points / junction boxes | B83: Anzahl Datenpunkte / Anschlussdosen | C83: Number of data points / junction boxes | D83: Aantal datapunten / lasdozen
A84: Total cable length | B84: Kabellänge total | C84: Total cable length | D84: Kabellengte totaal
A85: Total installation costs | B85: Gesamtkosten Installation | C85: Total installation costs | D85: Totale kosten installatie
A86: Costs of valve installation | B86: Kosten Ventilinstallation | C86: Costs of valve installation | D86: Kosten ventielinstallatie
A87: Effort valve installation | B87: Aufwand Ventilinstallation | C87: Effort valve installation | D87: Werkzaamheden ventielinstallatie
A88: Installation effort | B88: Aufwand Installation | C88: Installation effort | D88: Werkzaamheden installatie
A89: Costs of actuator installation | B89: Kosten Antriebsinstallation | C89: Costs of actuator installation | D89: Kosten Aandrijvingsinstallatie
A90: Effort installation actuator | B90: Aufwand Antriebsmontage | C90: Effort installation actuator | D90: Werkzaamheden aandrijvingsmontage
A91: Effort installation of junction box | B91: Aufwand Anschlussdosenmontage | C91: Effort installation of junction box | D91: Werkzaamheden lasdoosmontage
A92: =IF($B$20=$B$23,B92,IF($B$20=$C$23,C92,IF($B$20=$D$23,D92,IF($B$20=$E$23,E92,IF($B$20=$F$23,F92,IF($B$20=$G$23,G92,"!!!FEHLER!!!")))))) -> Effort cable installation | B92: Aufwand Kabelverlegung | C92: Effort cable installation | D92: Werkzaamheden bekabeling
A93: Cable installation | B93: Kabelverlegung | C93: Cable installation | D93: Bekabeling
A94: per linear meter | B94: pro Laufmeter | C94: per linear meter | D94: per meter
A95: This is an estimating tool which considers the named costs. Results are dependent on the accuracy of the input values. | B95: Das Ergebnis stellt lediglich eine Abschätzung bezüglich der genannten Kosten dar. Die Genauigkeit des Resultats hängt massgebend von den eingegebenen Informationen ab. | C95: This is an estimating tool which considers the named costs. Results are dependent on the accuracy of the input values. | D95: Het resultaat geeft slechts een schatting van de genoemde kosten weer. De nauwkeurigheid van het resultaat is sterk afhankelijk van de ingegeven waarden.
A96: For the calculation of the installation costs the following standard times has been used: | B96: Zur Berechnung der Installationskosten wurden folgende Standardzeiten verwendet: | C96: For the calculation of the installation costs the following standard times has been used: | D96: Ter berekening van de installatiekosten worden de volgende standaardtijden gebruikt:
A97: Installation | B97: Installation | C97: Installation | D97: Installatie
A98: Subject to modifications and amendments. | B98: Änderungen und Ergänzungen sind vorbehalten. | C98: Subject to modifications and amendments. | D98: Wijzigingen en aanvullingen voorbehouden
A99: To exit: ESC-key | B99: Zum Beenden: ESC-Taste | C99: To exit: ESC-key | D99: Beëindigen: ESC-toets
A100: PDF-File will be saved in the same directory as the excel file… | B100: PDF-Datei wird im selben Verzeichnis wie die Excel-Datei gespeichert… | C100: PDF-File will be saved in the same directory as the excel file… | D100: PDF-bestand wordt in dezelfde map opgeslagen als het Excel-bestand…
A101: Display: High level of details | B101: Detailierungsgrad Anzeige: hoch | C101: Display: High level of details | D101: Gedetailleerde weergave: hoog
A102: Display: Middle level of details | B102: Detailierungsgrad Anzeige: mittel | C102: Display: Middle level of details | D102: Gedetailleerde weergave: gemiddeld
A103: Display: Low level of details | B103: Detailierungsgrad Anzeige: tief | C103: Display: Low level of details | D103: Gedetailleerde weergave: laag
A104: Disclaimer / Information | B104: Haftungsausschluss / Information | C104: Disclaimer / Information | D104: Uitsluiting aansprakelijkheid / Informatie
A105: Full screen view | B105: Vollbildansicht | C105: Full screen view | D105: Volledig scherm
A106: Quick reference costs | B106: Schnellübersicht Kosten | C106: Quick reference costs | D106: Sneloverzicht kosten
A107: Print | B107: Drucken | C107: Print | D107: Afdrukken
A108: Create PDF | B108: PDF erstellen | C108: Create PDF | D108: PDF maken
A109: Delete entries | B109: Eingaben löschen | C109: Delete entries | D109: Invoer wissen
A110: Use of example values | B110: Beispielwerte verwenden | C110: Use of example values | D110: Voorbeeldwaarden gebruiken
A111: physical data point | B111: physikalischer Datenpunkt | C111: physical data point | D111: Fysiek datapunt
A112: Cable | B112: Kabel | C112: Cable | D112: Kabel
A113: Control cabinet | B113: Schaltschrank | C113: Control cabinet | D113: Schakelkast
A114: Page up | B114: Nach oben | C114: Page up | D114: Naar boven
A115: Information | B115: Informationen | C115: Information | D115: Informatie
A116: Calculation values (standard times) | B116: Berechnungswerte (Standardzeiten) | C116: Calculation values (standard times) | D116: Rekenwaarden (standaardtijden)
A117: Definition of the installation time depending on valve type | B117: Definition der Installationsdauer nach einzubauenden Ventiltyp | C117: Definition of the installation time depending on valve type | D117: Definitie van de installatieduur per in te bouwen ventieltype
A118: Definition as a function of building type is possible | B118: Gebäudetyp abhängige Definition möglich | C118: Definition as a function of building type is possible | D118: Gebouwtype afhankelijke definitie mogelijk
A119: Expenditure of time in hours | B119: Aufwand in Stunden | C119: Expenditure of time in hours | D119: Werkzaamheden in uren
A120: Installation object | B120: Installationsobjekt | C120: Installation object | D120: Installatie object
A121: This calculation tool considers the following costs | B121: Dieses Berechnungsprogramm berücksichtigt folgende Kosten | C121: This calculation tool considers the following costs | D121: Dit rekenprogramma neemt de volgende kosten mee
A122: Material costs | B122: Materialkosten | C122: Material costs | D122: Materiaalkosten
A123: Junction box | B123: Anschlussdose | C123: Junction box | D123: Lasdoos
A124: Labour costs | B124: Arbeitskosten | C124: Labour costs | D124: Arbeidskosten
A125: Installation of valves | B125: Installation der Ventile | C125: Installation of valves | D125: Installatie van de ventielen
A126: Installation of actuators | B126: Installation der Antriebe | C126: Installation of actuators | D126: Installatie van de aandrijvingen
A127: Labours costs for cable installation between data points and junction boxes | B127: Arbeitskosten für Kabelverlegung zwischen Datenpunkten und Anschlussdosen | C127: Labours costs for cable installation between data points and junction boxes | D127: Arbeidskosten voor bekabeling tussen datapunten en lasdozen
A128: Installation of junction boxes | B128: Anschlussdosenmontage | C128: Installation of junction boxes | D128: Lasdozenmontage
A129: Jump to: | B129: Springen zu: | C129: Jump to: | D129: Ga naar:
A130: Reference | B130: Hinweis | C130: Reference | D130: Aanwijzing
A131: Data points for a possible feedback signal are not considered. | B131: Datenpunkte für eventuelles Rückmeldesignal sind nicht berücksichtigt. | C131: Data points for a possible feedback signal are not considered. | D131: Datapunten voor een eventueel terugmeldsignaal zijn niet meegenomen.
A132: Back to main page | B132: Zurück zur Hauptseite | C132: Back to main page | D132: Terug naar hoofdpagina
A133: Values for example calculation | B133: Werte für Beispielsberechnung | C133: Values for example calculation | D133: Waarden voor voorbeeldberekening
A134: Please select again! | B134: Bitte neu wählen! | C134: Please select again! | D134: Opnieuw selecteren a.u.b.!
A135: 0
A136: 0
A137: 0
A138: 0
A139: 0
A140: 0
A141: 0
A142: 0
A143: 0
A144: 0
A145: 0
A146: 0
A147: 0
A148: 0
A149: 0
A150: 0
A151: 0
A152: 0
A153: 0
A154: 0
A155: 0
A156: =IF($B$20=$B$23,B156,IF($B$20=$C$23,C156,IF($B$20=$D$23,D156,IF($B$20=$E$23,E156,IF($B$20=$F$23,F156,IF($B$20=$G$23,G156,"!!!FEHLER!!!")))))) -> 0
A157: 0
A158: 0
A159: 0
A160: 0
A161: 0
A162: 0
A163: 0
A164: 0
A165: 0
A166: 0
A167: 0
A168: 0
A169: 0
A170: 0
A171: 0
A172: 0
A173: 0
A174: 0
A175: 0
A176: 0
A177: 0
A178: 0
A179: 0
A180: 0
A181: 0
A182: 0
A183: 0
A184: 0
A185: 0
A186: 0
A187: 0
A188: 0
A189: 0
A190: 0
A191: 0
A192: 0
A193: 0
A194: 0
A195: 0
A196: 0
A197: 0
A198: 0
A199: 0
A200: 0
A201: 0
A202: 0
A203: 0
A204: 0
A205: 0
A206: 0
A207: 0
A208: 0
... 74 more rows

Sheet Calculation values
C2: ='MAIN PAGE'!C4 -> Version 1.0.1
B3: ='MAIN PAGE'!B5:CA5 -> Belimo Savings Estimator | CZ3: Zellschutz
B4: ='MAIN PAGE'!B6:CA6 -> Investment costs 4-pipe system | CZ4: Formate
B6: ='Language-Currency'!A116 -> Calculation values (standard times) | DA6: Check Werte bei Wahl vorhanden?
B7: =CONCATENATE("▪ ",'Language-Currency'!A117) -> ▪ Definition of the installation time depending on valve type
B8: =CONCATENATE("▪ ",'Language-Currency'!A118) -> ▪ Definition as a function of building type is possible
AH10: ='Language-Currency'!A119 -> Expenditure of time in hours
B11: ='Language-Currency'!A44 -> Type of installation | R11: =CONCATENATE('Language-Currency'!A120," ") -> Installation object | AH11: =CONCATENATE("2",'Language-Currency'!A47) -> 2-way valve | AS11: =CONCATENATE("3",'Language-Currency'!A47) -> 3-way valve | BD11: =CONCATENATE("6",'Language-Currency'!A47) -> 6-way valve | BO11: ='Language-Currency'!A34 -> Actuator | BZ11: ='Language-Currency'!A39 -> Junction box | CK11: =CONCATENATE('Language-Currency'!A93," ",'Language-Currency'!A94) -> Cable installation per linear meter | DC11: 2-Weg | DD11: 3-Weg | DE11: 6-Weg | DF11: Antrieb | DG11: Anschlussdose | DH11: Kabelverlegung pro lfm
B12: ='Language-Currency'!A65 -> New construction / one-time | AH12: 0.95 | AS12: 1.22 | BD12: 2.44 | BO12: 0.07 | BZ12: 0.29 | CK12: 0.005 | DA12: =IF('MAIN PAGE'!$BE$18='Calculation values'!B12,1,0) -> 0 | DC12: =DA12*AH12 -> 0 | DD12: =DA12*AS12 -> 0 | DE12: =DA12*BD12 -> 0 | DF12: =DA12*BO12 -> 0 | DG12: =DA12*BZ12 -> 0 | DH12: =DA12*CK12 -> 0
B13: ='Language-Currency'!A66 -> New construction / repetitive | AH13: 0.85 | AS13: 1.1 | BD13: 2.22 | BO13: 0.07 | BZ13: 0.26 | CK13: 0.005 | DA13: =IF('MAIN PAGE'!$BE$18='Calculation values'!B13,1,0) -> 0 | DC13: 0 | DD13: 0 | DE13: 0 | DF13: 0 | DG13: 0 | DH13: 0
B14: ='Language-Currency'!A67 -> Existing construction / one-time | AH14: 1.26 | AS14: 1.62 | BD14: 3.24 | BO14: 0.07 | BZ14: 0.32 | CK14: 0.005 | DA14: =IF('MAIN PAGE'!$BE$18='Calculation values'!B14,1,0) -> 1 | DC14: 1.26 | DD14: 1.62 | DE14: 3.24 | DF14: 0.07 | DG14: 0.32 | DH14: 0.005
B15: ='Language-Currency'!A68 -> Existing construction / repetitive | AH15: 1.06 | AS15: 1.37 | BD15: 2.76 | BO15: 0.07 | BZ15: 0.3 | CK15: 0.005 | DA15: =IF('MAIN PAGE'!$BE$18='Calculation values'!B15,1,0) -> 0 | DC15: 0 | DD15: 0 | DE15: 0 | DF15: 0 | DG15: 0 | DH15: 0
B16: ='Language-Currency'!A69 -> User-defined 1 | DA16: =IF('MAIN PAGE'!$BE$18='Calculation values'!B16,1,0) -> 0 | DC16: 0 | DD16: 0 | DE16: 0 | DF16: 0 | DG16: 0 | DH16: 0
B17: ='Language-Currency'!A70 -> User-defined 2 | DA17: =IF('MAIN PAGE'!$BE$18='Calculation values'!B17,1,0) -> 0 | DC17: 0 | DD17: 0 | DE17: 0 | DF17: 0 | DG17: 0 | DH17: 0
DC19: Wahl für Berechnung
DC20: 2-Weg | DD20: 3-Weg | DE20: 6-Weg | DF20: Antrieb | DG20: Anschlussdose | DH20: Kabelverlegung pro lfm
DC21: =SUM(DC12:DC17) -> 1.26 | DD21: 1.62 | DE21: 3.24 | DF21: 0.07 | DG21: 0.32 | DH21: =SUM(DH12:DH17) -> 0.005
B22: ='Language-Currency'!A133 -> Values for example calculation | DC22: =60/1*DC21 -> 75.6 | DD22: 97.2 | DE22: 194.4 | DF22: 4.2 | DG22: 19.2 | DH22: 0.3 | DI22: Minuten
B24: ='Language-Currency'!A25 -> Currency | BE24: EUR | BQ24: -
B26: ='Language-Currency'!A43 -> Number of heat exchangers (Heating & Cooling) | BE26: 50 | BQ26: ='Language-Currency'!A57 -> piece
B28: ='Language-Currency'!A45 -> Average distance between control cabinet and junction box | BE28: 25 | BQ28: ='Language-Currency'!A59 -> meters
B29: ='MAIN PAGE'!B21 -> Cost of a 2-way valve including actuator (modulating) | BE29: 36 | BQ29: =CONCATENATE('MAIN PAGE'!BE2,"/",'Language-Currency'!A57) -> EUR/piece
B30: ='MAIN PAGE'!B22 -> Cost of a 2-way valve including actuator (open-close) | BE30: 32 | BQ30: =BQ29 -> EUR/piece
B31: ='Language-Currency'!A50 -> Cost of a 3-way valve including actuator | BE31: 41 | BQ31: =BQ29 -> EUR/piece
B32: ='Language-Currency'!A51 -> Cost of a 6-way valve including actuator | BE32: 165 | BQ32: =BQ29 -> EUR/piece
B33: ='Language-Currency'!A52 -> Cost of a physical data point | BE33: 50 | BQ33: =BQ29 -> EUR/piece
B34: ='Language-Currency'!A53 -> Cable costs | BE34: 0.19 | BQ34: =CONCATENATE('MAIN PAGE'!BE2,"/",'Language-Currency'!A61) -> EUR/meter
B35: ='Language-Currency'!A54 -> Cost of a junction box | BE35: 9 | BQ35: =BQ29 -> EUR/piece
B36: ='Language-Currency'!A56 -> Hourly rate installation work | BE36: 40 | BQ36: =CONCATENATE('MAIN PAGE'!BE2,"/",'Language-Currency'!A62) -> EUR/hour

Sheet Listenwerte (hidden)
A2: Version | B2: 1.0.1
A4: Gebäudetyp | B4: Detailierungsgrad Anzeige | C4: Sprache | D4: YES/NO | H4: Überprüfung Sprache Auswahlbox 'Gebäudetyp'
A5: ='Language-Currency'!A65 -> New construction / one-time | B5: ='Language-Currency'!A101 -> Display: High level of details | C5: ='Language-Currency'!B23 -> Deutsch | D5: Y | H5: ='MAIN PAGE'!$BE$18 -> Existing construction / one-time | I5: =IF(A5=H5,1,0) -> 0
A6: ='Language-Currency'!A66 -> New construction / repetitive | B6: ='Language-Currency'!A102 -> Display: Middle level of details | C6: ='Language-Currency'!C23 -> English | D6: N | H6: ='MAIN PAGE'!$BE$18 -> Existing construction / one-time | I6: =IF(A6=H6,1,0) -> 0
A7: ='Language-Currency'!A67 -> Existing construction / one-time | B7: ='Language-Currency'!A103 -> Display: Low level of details | C7: ='Language-Currency'!D23 -> Nederlands | H7: ='MAIN PAGE'!$BE$18 -> Existing construction / one-time | I7: 1
A8: ='Language-Currency'!A68 -> Existing construction / repetitive | C8: ='Language-Currency'!E23 ->  | H8: ='MAIN PAGE'!$BE$18 -> Existing construction / one-time | I8: 0
A9: ='Language-Currency'!A69 -> User-defined 1 | C9: ='Language-Currency'!F23 ->  | H9: ='MAIN PAGE'!$BE$18 -> Existing construction / one-time | I9: 0
A10: ='Language-Currency'!A70 -> User-defined 2 | C10: ='Language-Currency'!G23 ->  | H10: ='MAIN PAGE'!$BE$18 -> Existing construction / one-time | I10: 0
I12: =SUM(I5:I10) -> 1
I13: 1 = OK
I14: 0 = Meldung 'neu wählen'

Sheet Info
C1: ='MAIN PAGE'!C4 -> Version 1.0.1
B2: ='MAIN PAGE'!B5:CA5 -> Belimo Savings Estimator
B3: ='MAIN PAGE'!B6:CA6 -> Investment costs 4-pipe system
B5: =CONCATENATE('Language-Currency'!A121,":") -> This calculation tool considers the following costs:
C7: =CONCATENATE("● ",'Language-Currency'!A122) -> ● Material costs | AC7: ='Language-Currency'!A129 -> Jump to: | AE7: ='MAIN PAGE'!AL32 -> 4 pcs. 2-way | AK7: ='Language-Currency'!A132 -> Back to main page
D8: =CONCATENATE("○ ",'Language-Currency'!A35) -> ○ Valve
D9: =CONCATENATE("○ ",'Language-Currency'!A34) -> ○ Actuator | AE9: ='MAIN PAGE'!AZ32 -> 2 pcs. 2-way
D10: =CONCATENATE("○ ",'Language-Currency'!A111) -> ○ physical data point | AE10: ='MAIN PAGE'!AZ33 -> 1 pcs. 3-way
D11: =CONCATENATE("○ ",'Language-Currency'!A46) -> ○ Cable between data point and junction box | AE11: ='MAIN PAGE'!BN32 -> 1 pcs. 6-way
D12: =CONCATENATE("○ ",'Language-Currency'!A123) -> ○ Junction box
C14: =CONCATENATE("● ",'Language-Currency'!A124) -> ● Labour costs
D15: =CONCATENATE("○ ",'Language-Currency'!A125) -> ○ Installation of valves | X15: ='Language-Currency'!A130 -> Reference
D16: =CONCATENATE("○ ",'Language-Currency'!A126) -> ○ Installation of actuators | X16: ='Language-Currency'!A131 -> Data points for a possible feedback signal are not considered.
D17: =CONCATENATE("○ ",'Language-Currency'!A127) -> ○ Labours costs for cable installation between data points and junction boxes
D18: =CONCATENATE("○ ",'Language-Currency'!A128) -> ○ Installation of junction boxes
B20: ='MAIN PAGE'!AL32 -> 4 pcs. 2-way | AK20: ='Language-Currency'!A114 -> Page up
C24: ='Language-Currency'!A111 -> physical data point | M24: ='Language-Currency'!A112 -> Cable | U24: ='Language-Currency'!A39 -> Junction box
AF28: ='Language-Currency'!A34 -> Actuator
AF34: =CONCATENATE("2",'Language-Currency'!A47," (",'Language-Currency'!A36,")") -> 2-way valve (open-close)
AF36: =CONCATENATE("2",'Language-Currency'!A47," (",'Language-Currency'!A37,")") -> 2-way valve (modulating)
D39: ='Language-Currency'!A113 -> Control cabinet
B41: =CONCATENATE('MAIN PAGE'!AZ32," + ",'MAIN PAGE'!AZ33) -> 2 pcs. 2-way + 1 pcs. 3-way | AK41: ='Language-Currency'!A114 -> Page up
AF46: =CONCATENATE("3",'Language-Currency'!A47) -> 3-way valve
C49: ='Language-Currency'!A111 -> physical data point | M49: ='Language-Currency'!A112 -> Cable | U49: ='Language-Currency'!A39 -> Junction box | AF49: ='Language-Currency'!A34 -> Actuator
AF56: =CONCATENATE("2",'Language-Currency'!A47," (",'Language-Currency'!A37,")") -> 2-way valve (modulating)
D61: ='Language-Currency'!A113 -> Control cabinet
B63: ='MAIN PAGE'!BN32 -> 1 pcs. 6-way | AK63: ='Language-Currency'!A114 -> Page up
C70: ='Language-Currency'!A111 -> physical data point | M70: ='Language-Currency'!A112 -> Cable | U70: ='Language-Currency'!A39 -> Junction box | AF70: =CONCATENATE("6",'Language-Currency'!A47) -> 6-way valve
AF75: ='Language-Currency'!A34 -> Actuator
